bitfinex-derivatives/quotes_ETHF0:USTF0_20250602
["timestamp","ask_amount","ask_price","bid_price","bid_amount"]
[1748905570464,1.2596,2593.2,2592.2,3.2078]
[1748905570665,0.77108,2592.6,2592.4,0.77111]
[1748905570868,0.77109,2592.6,2592.4,0.77111]
[1748905571068,5.876,2592.7,2592.3,3.77114]
[1748905571269,3.2078,2592.8,2592.7,0.77103]
[1748905571456,5.876,2592.9,2592.8,0.771]
[1748905571858,3.2078,2593.2,2592.6,5.7822]
[1748905571859,0.77092,2593.1,2592.6,5.7822]
[1748905572063,3.2078,2593.2,2592.6,5.7822]
[1748905572370,0.77092,2593.1,2592.9,0.77095]
[1748905572868,3.9787,2593.2,2593.0,0.77094]
[1748905573074,3.2078,2593.2,2592.6,3.8546]
[1748905573272,4.5237,2593.2,2592.6,3.8546]
[1748905573462,3.2078,2593.2,2592.7,1.92759]
[1748905573662,3.9787,2593.2,2593.0,0.77092]
[1748905573862,0.77094,2593.1,2592.9,0.77097]
[1748905574069,3.97871,2593.2,2593.0,0.77093]
[1748905574370,3.97871,2593.2,2593.0,0.77092]
[1748905574670,3.2078,2593.2,2592.6,0.6468]
[1748905574857,0.77103,2592.8,2592.6,1.41786]
[1748905575366,1.9273,2593.1,2592.3,6.2078]
[1748905575562,1.9273,2593.1,2592.6,0.77105]
[1748905575867,3.2078,2593.2,2592.3,6.2078]
[1748905575868,3.2078,2593.2,2592.3,8.13564]
[1748905576068,0.771,2592.9,2592.7,0.77102]
[1748905576269,0.77096,2593.0,2592.8,0.77099]
[1748905576769,3.2078,2593.2,2592.6,0.77104]
[1748905576972,3.2078,2593.2,2592.3,6.2078]
[1748905577164,0.77097,2593.0,2592.7,0.77102]
[1748905577365,0.77098,2592.9,2592.6,0.77105]
[1748905577565,3.97881,2592.8,2592.5,0.77107]
[1748905577765,3.2078,2592.8,2592.6,0.77106]
[1748905577967,0.77102,2592.8,2592.5,0.77108]
[1748905578164,0.771,2592.9,2592.3,3.0]
[1748905578474,0.771,2592.9,2592.6,0.77105]
[1748905578869,0.77097,2593.0,2592.7,0.77103]
[1748905579465,0.77098,2592.9,2592.6,0.77105]
[1748905579773,5.878,2592.9,2592.7,0.07069789]
[1748905579976,5.878,2592.9,2592.8,0.771]
[1748905580565,3.2078,2593.1,2593.0,0.77094]
[1748905580777,8.8478,2593.1,2593.0,0.77094]
[1748905581071,5.64,2593.1,2593.0,0.77094]
[1748905581372,5.64,2593.2,2593.1,0.77092]
[1748905581574,5.64,2593.2,2592.8,0.77098]
[1748905581575,0.77096,2593.0,2592.8,0.77098]
[1748905581765,0.77096,2593.0,2592.9,0.77097]
[1748905581966,0.77097,2592.9,2592.8,0.01130012]
[1748905582268,3.2078,2593.4,2592.8,0.01130012]
[1748905582470,0.00577534,2593.5,2593.4,0.77083]
[1748905582767,0.00577534,2593.5,2593.4,3.97863]
[1748905584260,5.1343,2594.2,2593.7,0.77074]
[1748905584261,3.2078,2594.2,2593.7,0.77074]
[1748905584462,0.39352708,2595.0,2594.8,0.7704]
[1748905584676,0.39352708,2595.0,2593.8,1.2909]
[1748905584677,0.39352708,2595.0,2594.5,3.2078]
[1748905584972,0.39352708,2595.0,2593.9,9.49334]
[1748905584973,0.39352708,2595.0,2594.9,0.77038]
[1748905585170,5.64,2595.4,2595.3,0.77026]
[1748905585370,5.64,2595.4,2595.1,3.21357534]
[1748905585563,6.41026,2595.4,2595.2,0.77029]
[1748905585766,0.77026,2595.3,2595.2,1.249]
[1748905586176,0.77029,2595.2,2595.1,0.00577534]
[1748905586372,1.99049,2595.2,2595.1,0.00577534]
[1748905586576,4.428,2595.2,2594.2,3.2078]
[1748905586870,5.639,2595.2,2595.1,0.7703]
[1748905587670,5.639,2595.2,2594.9,1.3472]
[1748905587878,0.77037,2595.0,2594.7,0.77043]
[1748905588067,0.77037,2595.0,2594.7,0.77042]
[1748905588068,0.77035,2595.0,2594.7,0.77042]
[1748905588271,5.13361,2595.1,2594.5,0.7705]
[1748905588475,0.77046,2594.7,2594.5,3.9783]
[1748905588774,1.2202,2594.9,2594.6,1.3472]
[1748905588971,5.639,2595.2,2595.1,0.77032]
[1748905589375,5.639,2595.2,2595.0,3.2078]
[1748905589576,5.639,2595.2,2595.1,0.77032]
[1748905589979,5.639,2595.2,2594.9,1.3336]
[1748905590177,5.639,2595.2,2594.9,2.10397]
[1748905590374,5.639,2595.2,2595.0,0.77035]
[1748905590571,6.4093,2595.2,2595.1,1.3336]
[1748905590973,5.639,2595.2,2595.1,2.10392]
[1748905591882,6.40929,2595.2,2595.1,1.3336]
[1748905592582,5.639,2595.2,2595.1,1.3336]
[1748905592881,5.639,2595.2,2595.1,2.10392]
[1748905593281,6.40929,2595.2,2595.1,1.3336]
[1748905594475,6.40929,2595.2,2595.1,2.10392]
[1748905594476,5.639,2595.2,2595.1,2.10392]
[1748905594673,5.639,2595.2,2595.1,1.3336]
[1748905595079,6.40929,2595.2,2595.1,1.3336]
[1748905595279,3.21357534,2595.6,2595.1,1.3336]
[1748905595485,3.21357534,2595.6,2594.9,6.2078]
[1748905595486,0.77035,2595.0,2594.9,6.2078]
[1748905595682,0.77035,2595.0,2594.9,3.0]
[1748905596184,0.77033,2595.1,2594.9,6.2078]
[1748905596381,0.77028,2595.3,2595.1,0.7703]
[1748905596578,3.21357534,2595.6,2595.2,0.77028]
[1748905596886,0.77022,2595.5,2595.3,2.07825]
[1748905597077,0.77022,2595.5,2595.4,0.77023]
[1748905597281,8.85057534,2595.6,2595.4,1.308]
[1748905597481,0.7702,2595.5,2595.4,2.07822]
[1748905597678,0.7702,2595.5,2595.4,1.308]
[1748905597881,1.92553,2595.5,2595.1,0.07069789]
[1748905598086,0.77029,2595.2,2595.1,0.07069789]
[1748905598480,5.64277534,2595.6,2595.1,0.07069789]
[1748905598481,0.00577534,2595.6,2595.1,0.07069789]
[1748905598683,5.64177534,2595.6,2595.2,4.5414]
[1748905598987,0.77021,2595.5,2595.4,0.77021]
[1748905599780,0.77026,2595.3,2595.2,3.2078]
[1748905599988,0.77029,2595.2,2595.1,0.84099789]
[1748905600180,0.77029,2595.3,2595.2,0.77027]
[1748905601183,0.77025,2595.4,2595.3,0.77022]
[1748905601580,1.92553,2595.5,2595.1,3.27849789]
[1748905601785,0.77029,2595.2,2595.1,4.04878789]
[1748905602691,0.77029,2595.2,2595.1,3.27849789]
[1748905602889,0.77029,2595.2,2595.1,0.07069789]
[1748905603991,0.77028,2595.3,2595.1,0.07069789]
[1748905604192,0.77029,2595.2,2595.1,3.27849789]
[1748905604592,0.77029,2595.2,2595.1,6.27849789]
[1748905605193,0.77029,2595.2,2595.1,3.07069789]
[1748905605691,0.77048,2594.6,2594.4,3.2078]
[1748905605996,0.77038,2594.9,2594.6,1.92618]
[1748905606194,5.39,2595.0,2594.9,0.77038]
[1748905606492,0.7703,2595.3,2594.9,1.92596]
[1748905606684,0.7703,2595.3,2595.2,0.77027]
[1748905606882,6.16023,2595.4,2595.3,0.77026]
[1748905607492,6.16023,2595.4,2595.3,3.77026]
[1748905607793,6.16023,2595.4,2595.3,3.0]
[1748905608696,3.2078,2596.4,2595.3,8.0]
[1748905608990,0.9761,2596.9,2596.3,1.92489]
[1748905609192,0.9761,2596.9,2596.8,0.76982]
[1748905609496,0.9761,2596.9,2596.4,3.2078]
[1748905609497,5.39,2597.0,2596.4,3.2078]
[1748905609690,0.76987,2596.7,2596.5,0.76989]
[1748905610090,1.92447,2596.9,2596.4,0.00577534]
[1748905610386,6.19532534,2597.0,2596.4,0.00577534]
[1748905610587,0.76987,2596.7,2596.5,0.7699]
[1748905610789,3.21357534,2597.0,2596.4,3.21357534]
[1748905610992,3.21357534,2597.0,2596.9,0.76979]
[1748905610993,0.00577534,2597.0,2596.9,0.76979]
[1748905611395,0.00577534,2597.0,2596.9,5.76979]
[1748905611891,0.00577534,2597.0,2596.8,3.2078]
[1748905612096,0.77555534,2597.0,2596.8,3.2078]
[1748905612295,0.76979,2596.9,2596.8,3.2078]
[1748905612691,0.00577534,2597.0,2596.4,0.00577534]
[1748905613203,0.00577534,2597.0,2596.9,0.76979]
[1748905613500,0.00577534,2597.0,2596.9,3.97759]
[1748905613704,3.2078,2597.8,2596.9,8.2078]
[1748905614010,0.7697,2597.2,2597.0,0.76976]
[1748905614197,1.2343,2597.7,2596.9,3.2078]
[1748905614397,1.2343,2597.7,2596.5,5.389]
[1748905614398,0.76981,2596.9,2596.7,0.76984]
[1748905614603,0.00577534,2597.1,2596.7,0.76984]
[1748905614800,0.00577534,2597.1,2596.6,3.2078]
[1748905614801,0.76985,2596.7,2596.6,3.2078]
[1748905615003,0.00577534,2597.1,2597.0,0.76976]
[1748905615301,1.2343,2598.0,2597.7,0.76954]
[1748905615506,0.76952,2597.8,2597.7,3.2078]
[1748905615697,0.76952,2597.8,2597.7,0.76955]
[1748905615897,0.76952,2597.8,2597.6,0.76956]
[1748905616099,3.2078,2597.9,2597.4,3.97741]
[1748905616394,0.00577534,2597.9,2597.5,0.76959]
[1748905616596,1.24007534,2597.9,2597.5,0.76959]
[1748905616800,0.76958,2597.6,2597.5,1.3822]
[1748905617311,0.76958,2597.6,2597.5,2.15181]
[1748905617510,0.76956,2597.7,2597.5,1.3822]
[1748905617705,0.76956,2597.7,2597.6,0.76958]
[1748905617910,0.76955,2597.7,2597.6,0.76957]
[1748905618105,0.76955,2597.8,2597.6,0.76957]
[1748905618311,0.76955,2597.8,2597.7,1.3822]
[1748905618704,0.00577534,2597.9,2597.4,3.97742]
[1748905618904,0.76961,2597.5,2597.4,4.59]
[1748905619308,0.76964,2597.4,2597.3,0.76967]
[1748905619514,5.387,2597.6,2597.1,1.3822]
[1748905619710,5.387,2597.6,2597.5,0.76961]
[1748905619912,3.21357534,2597.9,2597.2,5.13203]
[1748905620113,5.387,2597.8,2597.7,0.76953]
[1748905620406,5.387,2597.8,2597.4,0.76962]
[1748905620610,6.8748,2597.8,2597.4,2.24742]
[1748905620911,6.8748,2597.8,2596.9,3.2078]
[1748905620912,5.13181,2597.6,2596.9,3.2078]
[1748905621111,5.13181,2597.6,2597.4,3.0]
[1748905621112,2.25741,2597.5,2597.4,3.0]
[1748905621312,2.9717,2597.5,2596.8,2.2476]
[1748905621509,3.2078,2597.3,2596.9,0.76977]
[1748905621807,3.2078,2597.3,2596.9,5.13227]
[1748905622013,5.386,2597.4,2597.3,0.76967]
[1748905622412,6.15557,2597.7,2597.5,0.76959]
[1748905622612,0.76958,2597.6,2597.5,0.76959]
[1748905622816,0.76961,2597.5,2597.4,0.76964]
[1748905623011,0.76967,2597.3,2597.2,3.2078]
[1748905623207,0.76979,2596.9,2596.8,1.4968]
[1748905623413,0.76987,2596.7,2596.5,3.2078]
[1748905623611,0.76987,2596.7,2596.5,4.7046]
[1748905624009,1.4931,2597.1,2596.5,7.7046]
[1748905624313,5.386,2597.1,2596.5,7.7046]
[1748905624515,5.386,2597.1,2596.8,0.7698]
[1748905624717,0.76979,2597.0,2596.5,9.62935]
[1748905624911,6.7452,2597.3,2596.5,7.7046]
[1748905625117,7.31022,2597.3,2596.8,3.2078]
[1748905625313,0.76988,2596.6,2596.5,6.2078]
[1748905625514,0.76988,2596.6,2596.5,8.47448]
[1748905625710,10.51836,2596.8,2596.4,0.00577534]
[1748905625915,0.77002,2596.1,2596.0,1.4966]
[1748905626417,0.76991,2596.5,2596.4,0.76994]
[1748905626611,0.76994,2596.4,2596.3,0.76995]
[1748905626916,0.00577534,2596.6,2596.2,3.2078]
[1748905627116,0.76992,2596.5,2596.4,0.76992]
[1748905627310,0.00577534,2596.6,2596.2,3.97778]
[1748905627511,0.00577534,2596.6,2596.3,0.76996]
[1748905627813,0.76996,2596.3,2596.2,6.2078]
[1748905628020,6.15696,2596.3,2596.2,6.2078]
[1748905628212,6.15696,2596.3,2596.2,3.0]
[1748905628407,5.03186,2596.4,2596.2,3.0]
[1748905628607,0.76996,2596.3,2596.2,3.0]
[1748905629016,0.76996,2596.3,2596.2,3.76999]
[1748905629816,0.76996,2596.3,2596.2,3.0]
[1748905630023,2.26156,2596.3,2596.2,3.0]
[1748905630217,1.92502,2596.2,2595.5,3.2078]
[1748905630419,0.77017,2595.6,2595.5,3.2078]
[1748905630621,5.387,2595.7,2595.6,0.77017]
[1748905630923,3.2078,2596.3,2595.9,0.77008]
[1748905630924,5.387,2596.0,2595.9,0.77008]
[1748905631417,3.97779,2596.3,2596.1,0.77002]
[1748905631623,3.2078,2596.3,2596.2,0.76999]
[1748905631919,3.2078,2596.3,2595.8,3.2078]
[1748905632217,0.77005,2596.1,2596.0,0.77005]
[1748905632420,0.77004,2596.1,2595.8,6.2078]
[1748905632718,5.36999,2596.3,2595.8,6.2078]
[1748905632922,0.77004,2596.1,2596.0,0.77004]
[1748905633122,0.77004,2596.1,2596.0,0.77005]
[1748905633123,5.387,2596.1,2596.0,0.77005]
[1748905633424,5.387,2596.3,2596.2,0.76999]
[1748905633622,1.4439,2596.4,2596.3,0.76996]
[1748905633927,0.00577534,2596.6,2596.5,0.76991]
[1748905634223,0.00577534,2596.6,2596.5,3.97771]
[1748905637124,0.00577534,2596.6,2596.5,3.2078]
[1748905637322,0.76991,2596.5,2595.9,3.2078]
[1748905637624,0.76998,2596.3,2596.2,0.76998]
[1748905637829,0.77001,2596.2,2596.1,0.77002]
[1748905638127,0.76998,2596.3,2596.2,0.76999]
[1748905638327,0.00577534,2596.6,2596.4,0.76993]
[1748905638516,0.76991,2596.5,2596.4,0.76993]
[1748905638719,0.77565534,2596.6,2596.5,0.76991]
[1748905639122,5.217,2597.3,2596.5,8.2078]
[1748905639425,0.76973,2597.1,2597.0,3.2078]
[1748905639626,5.217,2597.3,2597.0,3.97755]
[1748905639930,0.7697,2597.2,2597.0,3.2078]
[1748905640130,5.217,2597.2,2597.0,3.2078]
[1748905640330,0.76973,2597.1,2597.0,3.2078]
[1748905640526,5.217,2597.2,2597.0,3.2078]
[1748905640728,0.00577534,2597.4,2597.3,0.76967]
[1748905640932,0.00577534,2597.4,2597.3,3.97747]
[1748905641132,0.00577534,2597.4,2597.3,8.97747]
[1748905641431,0.7695,2597.9,2597.7,0.76953]
[1748905641828,5.217,2598.0,2597.6,3.2078]
[1748905642024,1.4451,2597.9,2597.1,0.00577534]
[1748905642225,5.217,2597.8,2597.1,0.00577534]
[1748905642426,0.7697,2597.2,2597.1,0.00577534]
[1748905642719,1.92396,2597.6,2597.2,0.7697]
[1748905642720,5.216,2597.3,2597.2,0.7697]
[1748905642923,1.41487534,2597.8,2597.2,3.2078]
[1748905643121,1.41487534,2597.8,2597.7,0.76955]
[1748905643320,0.00577534,2597.8,2597.7,0.76955]
[1748905644335,0.00577534,2597.8,2597.6,3.2078]
[1748905644531,0.00577534,2597.8,2597.6,0.76957]
[1748905644532,0.77530534,2597.8,2597.6,0.76957]
[1748905644731,5.216,2598.0,2597.4,1.4709]
[1748905644732,5.42920534,2598.0,2597.5,0.76959]
[1748905644929,5.42920534,2598.0,2597.4,3.2078]
[1748905645130,38.828,2598.1,2597.9,0.76949]
[1748905645435,5.216,2598.0,2597.9,0.76949]
[1748905645636,5.216,2598.0,2597.8,2.1715]
[1748905645837,39.59745,2598.1,2597.8,4.6098]
[1748905646038,44.81345,2598.1,2597.9,0.76947]
[1748905646231,44.81345,2598.1,2597.7,0.76952]
[1748905646232,44.044,2598.1,2597.7,0.76952]
[1748905646437,44.044,2598.1,2598.0,0.76946]
[1748905647032,44.81345,2598.1,2597.8,4.6098]
[1748905647227,44.044,2598.1,2598.0,0.76946]
[1748905647731,0.00577534,2598.2,2598.1,0.76943]
[1748905647931,5.216,2598.8,2598.7,0.76925]
[1748905648128,0.76922,2598.8,2598.7,0.76925]
[1748905648334,3.2078,2599.3,2598.7,3.2078]
[1748905648641,3.2078,2599.3,2598.2,3.41227]
[1748905648642,1.92307,2598.8,2598.2,2.2582]
[1748905648832,0.76933,2598.5,2598.3,0.76937]
[1748905649032,3.2078,2598.5,2598.2,0.00577534]
[1748905649240,0.76928,2598.6,2598.4,0.76933]
[1748905649436,0.76928,2598.6,2598.2,0.00577534]
[1748905649437,3.76416,2598.7,2598.3,1.4888]
[1748905649737,5.215,2598.6,2598.3,0.76935]
[1748905649939,6.7113,2598.6,2598.2,3.21357534]
[1748905650139,7.48061,2598.6,2598.4,0.76933]
[1748905650434,3.21357534,2598.8,2598.2,0.00577534]
[1748905650639,5.215,2598.7,2598.2,3.21357534]
[1748905650937,5.215,2598.7,2598.4,0.76932]
[1748905650938,0.76931,2598.6,2598.4,0.76932]
[1748905651126,6.675,2598.7,2598.3,1.5111]
[1748905651332,6.675,2598.7,2598.2,3.21357534]
[1748905651333,0.76937,2598.3,2598.2,3.21357534]
[1748905651536,0.76936,2598.4,2598.2,0.00577534]
[1748905651835,0.76932,2598.5,2598.4,0.76933]
[1748905652139,5.215,2598.6,2598.5,0.76931]
[1748905652632,5.215,2598.6,2598.4,1.5111]
[1748905652829,0.76926,2598.7,2598.5,0.76931]
[1748905653038,5.215,2598.6,2598.5,0.76931]
[1748905653338,0.76928,2598.6,2598.4,2.28043]
[1748905653635,7.13816,2598.7,2598.3,0.76937]
[1748905653841,2.17249,2598.6,2598.2,4.40157534]
[1748905654135,5.215,2598.7,2598.3,4.6036]
[1748905654343,0.77500534,2598.8,2598.7,0.76925]
[1748905654534,0.00577534,2598.8,2598.6,3.2078]
[1748905654840,0.00577534,2598.8,2598.7,5.37285]
[1748905655337,0.00577534,2598.8,2598.7,10.37285]
[1748905655529,1.4032,2599.5,2598.9,1.92297]
[1748905655731,5.98305,2599.4,2599.2,3.97688]
[1748905655928,110.46315057,2600.0,2599.9,0.7689]
[1748905656132,110.46315057,2600.0,2599.9,8.9767]
[1748905656133,97.58987057,2600.0,2599.9,8.9767]
[1748905656737,95.47000057,2600.0,2599.9,8.9767]
[1748905656941,91.25026057,2600.0,2599.9,8.9767]
[1748905657133,88.18977989,2600.0,2599.9,10.19831345]
[1748905657333,88.18977989,2600.0,2599.9,3.9767]
[1748905657639,88.18977989,2600.0,2599.9,8.9767]
[1748905658034,88.18977989,2600.0,2599.9,3.9767]
[1748905658337,86.26517989,2600.0,2599.9,3.9767]
[1748905658936,86.26517989,2600.0,2599.9,8.9767]
[1748905659534,86.26517989,2600.0,2599.9,3.9767]
[1748905661944,74.83617989,2600.0,2599.9,3.9767]
[1748905662539,74.83617989,2600.0,2599.9,8.9767]
[1748905662739,72.32968989,2600.0,2599.9,8.9767]
[1748905662940,69.35978989,2600.0,2599.9,8.9767]
[1748905663151,67.84930989,2600.0,2599.9,8.9767]
[1748905663442,59.84375129,2600.0,2599.9,8.9767]
[1748905663836,48.59500318,2600.0,2599.9,8.9767]
[1748905664042,47.51131318,2600.0,2599.9,3.9767]
[1748905664443,45.86295318,2600.0,2599.9,11.9767]
[1748905664644,44.65786318,2600.0,2599.9,11.9767]
[1748905664846,43.31473318,2600.0,2599.9,11.9767]
[1748905665045,40.66214318,2600.0,2599.9,11.9767]
[1748905665244,0.34473767,2601.1,2599.9,11.9767]
[1748905665245,7.67e-06,2601.1,2601.0,0.76857]
[1748905665441,5.468,2602.8,2601.2,1.92123]
[1748905665641,38.782,2604.4,2601.2,1.92123]
[1748905665642,7.6924,2603.6,2602.6,1.92025]
[1748905665840,3.2078,2604.5,2603.5,3.2078]
[1748905666044,10.366,2604.5,2603.7,0.76775]
[1748905666351,10.366,2604.5,2604.0,3.2078]
[1748905666352,7.6924,2604.1,2604.0,3.2078]
[1748905666541,7.6924,2604.2,2604.0,3.2078]
[1748905666949,7.6924,2604.2,2603.8,0.00576291]
[1748905666950,5.701,2604.2,2603.9,3.2078]
[1748905667149,5.701,2604.5,2604.0,1.3887]
[1748905667354,0.00572149,2604.5,2604.4,3.97537]
[1748905667550,3.2078,2605.3,2604.4,0.999]
[1748905667749,6.81426,2605.5,2604.7,3.2078]
[1748905668050,6.81426,2605.7,2605.1,3.2078]
[1748905668260,7.12,2605.7,2605.1,3.2078]
[1748905668548,7.12,2605.7,2605.1,0.00576291]
[1748905668549,10.02206,2605.2,2605.1,0.00576291]
[1748905668857,0.7675,2604.7,2604.1,3.2078]
[1748905669151,1.91816,2605.5,2603.5,1.5018]
[1748905669152,4.6755,2605.1,2604.4,3.2078]
[1748905669360,10.02206,2605.2,2604.5,3.2078]
[1748905669562,3.2078,2605.2,2604.5,3.2078]
[1748905669765,0.00576291,2605.1,2605.0,3.97518]
[1748905670061,15.20616291,2605.7,2605.0,3.2078]
[1748905670261,10.02206,2605.3,2604.6,0.00576291]
[1748905670465,6.81426,2605.0,2604.6,0.00576291]
[1748905670770,15.78046,2604.7,2603.8,3.2078]
[1748905671067,6.81426,2603.9,2603.4,3.2078]
[1748905671258,3.2078,2604.6,2603.8,3.2078]
[1748905671453,5.7608,2604.7,2604.1,3.2078]
[1748905671655,4.7102,2604.6,2604.1,3.2078]
[1748905671963,6.81426,2604.5,2604.1,0.00576291]
[1748905672162,1.5024,2604.4,2604.2,0.76762]
[1748905672360,14.07666,2604.4,2604.1,0.00576291]
[1748905672562,3.21356291,2604.6,2604.1,0.00576291]
[1748905672764,0.00576291,2604.6,2604.5,0.76754]
[1748905673366,2.91e-06,2604.6,2604.5,2.21704]
[1748905673571,7.115,2605.4,2605.3,0.7673]
[1748905673862,1.5024,2605.7,2605.5,0.76723]
[1748905674060,1.5024,2605.7,2605.5,3.2078]
[1748905674258,2.20402,2606.3,2605.5,3.2078]
[1748905674462,3.55253767,2606.4,2606.3,0.76701]
[1748905674657,12.57026,2606.3,2606.1,3.2078]
[1748905674858,6.81426,2606.2,2605.8,3.2078]
[1748905675069,3.97493,2605.9,2605.6,1.45526291]
[1748905675268,7.58145,2605.7,2605.6,0.00576291]
[1748905675560,19.68226,2605.7,2604.9,3.2078]
[1748905675761,1.5285,2605.6,2605.5,0.76725]
[1748905675963,7.112,2605.7,2605.3,3.2078]
[1748905676165,12.8704,2605.7,2605.2,1.4939]
[1748905676358,12.8704,2605.7,2605.4,0.76726]
[1748905676560,13.64337291,2605.7,2605.2,4.70746291]
[1748905676758,6.81426,2605.4,2605.2,0.00576291]
[1748905676963,3.2078,2605.5,2604.4,1.4939]
[1748905676964,0.76749,2604.7,2604.4,1.4939]
[1748905677162,0.76749,2604.7,2603.8,3.2078]
[1748905677163,3.2078,2604.5,2603.8,3.2078]
[1748905677363,0.76755,2604.5,2604.2,0.76761]
[1748905677572,1.5285,2604.4,2604.2,0.76761]
[1748905677764,7.2877,2604.4,2604.3,0.7676]
[1748905677964,0.76748,2604.7,2604.0,4.7017]
[1748905678172,7.58178,2604.6,2604.3,0.76758]
[1748905678479,1.3855,2604.5,2604.3,0.76759]
[1748905678771,3.2078,2604.8,2604.2,1.91908]
[1748905678962,3.2078,2605.3,2604.4,3.2078]
[1748905679163,6.81426,2605.0,2604.4,3.2078]
[1748905679362,8.19976,2604.9,2604.4,3.2078]
[1748905679563,11.3855,2604.9,2604.4,6.2078]
[1748905679764,6.81426,2604.6,2604.4,6.2078]
[1748905679960,1.3855,2604.5,2604.4,3.0]
[1748905680163,12.8081,2604.5,2604.4,3.0]
[1748905680364,22.04056,2604.5,2604.4,3.0]
[1748905680564,5.2263,2604.5,2604.4,3.76757]
[1748905680765,3.2078,2605.2,2605.1,0.76736]
[1748905680970,0.00576291,2605.7,2605.1,0.76736]
[1748905680971,2.91e-06,2605.7,2605.2,1.91834]
[1748905681168,0.34473767,2606.4,2605.6,3.2078]
[1748905681362,0.34473767,2606.4,2606.3,0.76701]
[1748905681773,0.34473767,2606.4,2606.3,2.21581]
[1748905682373,0.34473767,2606.4,2606.2,3.2078]
[1748905682374,0.76704,2606.2,2606.1,0.00576291]
[1748905682568,7.5813,2606.2,2606.1,0.00576291]
[1748905682768,20.89820001,2606.2,2606.1,0.00576291]
[1748905682974,14.08394001,2606.2,2606.1,0.00576291]
[1748905683169,0.34473767,2606.4,2606.3,0.76701]
[1748905683369,0.34473767,2606.4,2606.1,3.21356291]
[1748905683370,0.34473767,2606.4,2606.2,1.4488]
[1748905683671,10.89820001,2606.2,2605.5,4.15690466]
[1748905683873,7.58148,2605.6,2605.5,0.18186466]
[1748905684374,24.10600001,2605.6,2604.9,1.91856]
[1748905684571,4.08394001,2605.5,2605.4,0.76728]
[1748905684874,4.08394001,2605.5,2605.2,0.00576291]
[1748905684875,0.76731,2605.3,2605.2,0.00576291]
[1748905685072,3.97511,2605.3,2605.2,0.00576291]
[1748905685272,3.97511,2605.3,2604.4,7.6099]
[1748905685273,19.10600001,2605.3,2604.4,3.76757]
[1748905685471,19.10600001,2605.3,2604.4,3.07069789]
[1748905685472,7.58181,2604.5,2604.4,3.07069789]
[1748905685672,6.81426,2604.6,2604.4,3.147491]
[1748905685867,7.109,2604.7,2604.6,0.76752]
[1748905686576,0.00576291,2604.9,2604.8,0.76746]
[1748905686871,0.00576291,2604.9,2604.8,3.97526]
[1748905686872,2.91e-06,2604.9,2604.8,3.97526]
[1748905687580,1.4301,2606.0,2604.8,8.2078]
[1748905687777,6.81426,2605.8,2605.7,3.2078]
[1748905688078,4.08394001,2605.9,2605.3,5.12603]
[1748905688278,11.66536001,2605.8,2605.4,3.2078]
[1748905688469,12.32830001,2605.8,2605.7,0.76719]
[1748905688776,3.21356291,2606.0,2605.9,0.76713]
[1748905689374,0.00576291,2606.0,2605.9,0.76713]
[1748905689774,0.89096291,2606.3,2606.2,0.76704]
[1748905690078,21.78340001,2606.3,2606.2,0.76704]
[1748905690779,21.6594471,2606.3,2606.2,0.76704]
[1748905691177,20.8924371,2606.3,2606.1,0.76706]
[1748905691372,10.89820001,2606.2,2606.1,0.76706]
[1748905691772,20.8924371,2606.2,2606.1,0.76706]
[1748905691976,0.76707,2606.1,2606.0,0.00576291]
[1748905692177,10.89820001,2606.1,2606.0,0.77286291]
[1748905692378,4.08394001,2606.1,2606.0,0.77286291]
[1748905692575,4.08394001,2606.1,2606.0,2.27286291]
[1748905693577,4.08394001,2606.1,2604.7,3.2078]
[1748905693578,5.0,2606.1,2604.7,3.2078]
[1748905693780,6.81426,2605.5,2605.1,3.2078]
[1748905694074,7.58155,2605.4,2605.3,0.7673]
[1748905694275,7.58166,2605.0,2604.6,3.2078]
[1748905694481,6.81426,2605.0,2604.6,4.5914]
[1748905694682,6.81426,2604.8,2604.6,4.5914]
[1748905694981,16.80849418,2604.8,2604.7,0.76749]
[1748905695183,4.08394001,2604.8,2604.7,0.76749]
[1748905695479,7.366,2605.0,2604.9,0.76743]
[1748905695782,4.08394001,2604.9,2604.8,0.76744]
[1748905696274,7.366,2605.0,2604.9,0.76743]
[1748905696479,6.81426,2604.8,2604.7,2.15109]
[1748905696884,20.89243419,2604.8,2604.7,2.15109]
[1748905697774,20.89243419,2604.8,2604.6,3.76749]
[1748905698082,11.66569001,2604.7,2604.6,3.0]
[1748905698279,11.66569001,2604.7,2604.5,0.00576291]
[1748905698280,4.08394001,2604.6,2603.9,3.2078]
[1748905698580,0.76774,2603.9,2603.5,3.2078]
[1748905698778,6.81426,2604.0,2603.6,1.468]
[1748905698978,4.08394001,2603.9,2603.8,0.76775]
[1748905699377,20.80041339,2603.9,2603.8,0.76775]
[1748905699779,20.80041339,2603.9,2603.6,1.47376291]
[1748905699979,11.66598001,2603.7,2603.6,0.00576291]
[1748905700182,11.66598001,2603.7,2603.6,3.00576291]
[1748905700379,20.80041339,2603.7,2603.6,3.77357291]
[1748905700982,0.00576291,2604.1,2603.6,3.00576291]
[1748905701282,10.89820001,2604.0,2603.9,0.76772]
[1748905701581,4.08394001,2604.0,2603.9,2.22302]
[1748905702381,20.80041339,2604.0,2603.9,0.76772]
[1748905702584,20.80041339,2604.0,2603.9,2.25162]
[1748905702585,10.89820001,2604.0,2603.9,2.25162]
[1748905703981,0.00576291,2604.1,2603.9,2.25162]
[1748905704174,3.2078,2605.5,2604.8,0.76746]
[1748905704377,3.2078,2605.5,2605.3,0.7673]
[1748905704578,0.76733,2605.3,2605.1,0.76735]
[1748905704779,2.22364,2605.2,2605.1,0.76735]
[1748905705282,11.78754258,2605.2,2605.1,0.76737]